bitfinex-derivatives/quotes_BTCF0:USTF0_20251120
["timestamp","ask_amount","ask_price","bid_price","bid_amount"]
[1763614124553,0.07175008,92566.0,92565.0,0.11033053]
[1763614125259,0.03553008,92566.0,92565.0,0.11033053]
[1763614126154,0.07175008,92566.0,92565.0,0.11033053]
[1763614130867,0.05281008,92566.0,92565.0,0.11521053]
[1763614137274,0.05281008,92566.0,92565.0,0.14422555]
[1763614138164,0.09247,92574.0,92573.0,0.1503431]
[1763614138366,0.09247,92574.0,92573.0,0.15254113]
[1763614142174,0.09247,92574.0,92573.0,0.18155615]
[1763614142574,0.09247,92574.0,92573.0,0.15254113]
[1763614144267,0.09247,92574.0,92573.0,0.19131489]
[1763614146177,0.09247,92574.0,92573.0,0.15254113]
[1763614146569,0.09247,92574.0,92573.0,0.21076598]
[1763614146769,0.09247,92574.0,92573.0,0.15254113]
[1763614147679,0.09247,92574.0,92573.0,0.04441803]
[1763614148073,0.09247,92574.0,92573.0,0.12802803]
[1763614148771,0.09247,92574.0,92573.0,0.00219803]
[1763614148974,0.09247,92574.0,92573.0,0.10691803]
[1763614149578,0.09247,92574.0,92573.0,0.12454803]
[1763614149778,0.09247,92574.0,92573.0,0.14217803]
[1763614154982,0.09247,92574.0,92573.0,0.20046915]
[1763614157181,0.09247,92574.0,92573.0,0.14217803]
[1763614159579,0.09167,92582.0,92581.0,0.03526]
[1763614159882,0.09167,92582.0,92581.0,0.39825803]
[1763614160070,0.09167,92582.0,92581.0,0.36299803]
[1763614160467,0.09167,92582.0,92581.0,0.38062803]
[1763614161973,0.09167,92582.0,92581.0,0.39825803]
[1763614165284,0.09167,92582.0,92581.0,0.38062803]
[1763614165986,0.09167,92582.0,92581.0,0.39825803]
[1763614167179,0.03881332,92585.0,92581.0,0.36299803]
[1763614167378,0.05508588,92610.0,92602.0,0.1080893]
[1763614167379,0.05003,92605.0,92602.0,0.1080893]
[1763614167578,0.08302,92605.0,92604.0,0.0410321]
[1763614167779,0.08302,92605.0,92604.0,0.00219803]
[1763614168276,0.06418,92601.0,92600.0,0.3608]
[1763614169672,0.06418,92601.0,92600.0,0.001]
[1763614170181,0.1722833,92590.0,92589.0,2.8e-07]
[1763614170484,0.01884,92592.0,92580.0,0.27337264]
[1763614170485,0.03119,92581.0,92580.0,0.27337264]
[1763614170782,0.06418,92581.0,92580.0,0.47111303]
[1763614170982,0.06418,92581.0,92580.0,0.36299803]
[1763614171373,0.06418,92581.0,92580.0,0.00219803]
[1763614171885,0.06418,92581.0,92580.0,0.00419803]
[1763614172186,0.06418,92581.0,92580.0,0.40377105]
[1763614172388,0.06418,92581.0,92580.0,0.40177105]
[1763614172686,0.06418,92581.0,92580.0,0.40277105]
[1763614172877,0.06418,92581.0,92580.0,0.36399803]
[1763614173385,0.06418,92581.0,92580.0,0.46875803]
[1763614175177,0.06418,92581.0,92580.0,0.46975803]
[1763614175781,0.06418,92581.0,92580.0,0.46875803]
[1763614175983,0.0856,92586.0,92580.0,0.47975802]
[1763614176281,0.0856,92586.0,92585.0,0.1081091]
[1763614176480,0.0856,92586.0,92585.0,0.11030713]
[1763614177886,0.0856,92586.0,92585.0,0.04097086]
[1763614178088,0.0856,92586.0,92585.0,0.00319803]
[1763614180483,0.193708,92586.0,92585.0,0.001]
[1763614180688,0.193708,92586.0,92580.0,0.37079999]
[1763614180689,0.08638,92574.0,92572.0,0.0582511]
[1763614180882,0.06676,92572.0,92570.0,0.3608]
[1763614181281,0.06676,92572.0,92570.0,0.03881148]
[1763614181682,0.06676,92572.0,92569.0,0.03881148]
[1763614182280,0.06676,92572.0,92571.0,0.00116203]
[1763614182682,0.06676,92572.0,92571.0,0.00336006]
[1763614183181,0.06676,92572.0,92571.0,0.04216916]
[1763614183381,0.06676,92572.0,92571.0,0.04216849]
[1763614183785,0.06676,92572.0,92571.0,0.04116849]
[1763614184375,0.06676,92572.0,92571.0,0.04216849]
[1763614184581,0.06676,92572.0,92571.0,0.00336006]
[1763614185393,0.03532,92572.0,92571.0,0.00336006]
[1763614185691,0.01962,92580.0,92579.0,0.1081161]
[1763614185886,0.01962,92580.0,92579.0,0.47111413]
[1763614187386,0.05494,92580.0,92579.0,0.47211413]
[1763614187887,0.05494,92580.0,92579.0,0.47111413]
[1763614188088,0.08638,92580.0,92579.0,0.47211413]
[1763614192700,0.08638,92580.0,92579.0,0.57683413]
[1763614199403,0.08638,92580.0,92579.0,0.46871803]
[1763614201509,0.05494,92580.0,92579.0,0.46871803]
[1763614201706,0.01962,92580.0,92579.0,0.46871803]
[1763614202009,0.05494,92580.0,92579.0,0.46871803]
[1763614202900,0.08972,92580.0,92579.0,0.46871803]
[1763614203511,0.04978,92586.0,92579.0,0.46971803]
[1763614203709,0.08456,92586.0,92584.0,0.05821266]
[1763614203903,0.08456,92586.0,92585.0,0.00219803]
[1763614204409,0.08456,92586.0,92585.0,0.11030713]
[1763614204795,0.08456,92586.0,92585.0,0.21494713]
[1763614205002,0.08456,92586.0,92585.0,0.21594713]
[1763614205499,0.08456,92586.0,92585.0,0.10783803]
[1763614206097,0.08456,92586.0,92585.0,0.10883803]
[1763614207808,0.04978,92586.0,92585.0,0.10883803]
[1763614208207,0.08456,92586.0,92585.0,0.10883803]
[1763614209509,0.08456,92586.0,92585.0,0.10783803]
[1763614209710,0.08456,92586.0,92585.0,0.10883803]
[1763614211116,0.08456,92586.0,92585.0,0.00419803]
[1763614211308,0.08456,92586.0,92585.0,0.10883803]
[1763614213004,0.08456,92586.0,92585.0,0.10783803]
[1763614213207,0.08456,92586.0,92585.0,0.16705069]
[1763614213808,0.08456,92586.0,92585.0,0.16605069]
[1763614214122,0.08456,92586.0,92585.0,0.16705069]
[1763614214312,0.08456,92586.0,92585.0,0.10883803]
[1763614215715,0.01884,92586.0,92585.0,0.10883803]
[1763614215920,1e-08,92592.0,92589.0,0.1081045]
[1763614216109,0.08343,92604.0,92597.0,0.1080951]
[1763614216314,0.08343,92604.0,92603.0,0.47108613]
[1763614216920,0.08343,92604.0,92603.0,0.48146983]
[1763614218623,0.08343,92604.0,92603.0,0.47108613]
[1763614219022,0.08343,92604.0,92603.0,0.48126451]
[1763614219220,0.04865,92604.0,92603.0,0.48126451]
[1763614219424,0.00026996,92606.0,92603.0,0.48126451]
[1763614219622,0.00026996,92606.0,92605.0,0.3608]
[1763614219822,0.01771,92616.0,92610.0,0.00999999]
[1763614219823,0.08343,92616.0,92610.0,0.00999999]
[1763614220020,0.03883068,92639.0,92610.0,0.00999999]
[1763614220021,0.42652,92633.0,92615.0,0.36299803]
[1763614220220,0.08343,92622.0,92620.0,0.07341617]
[1763614220420,0.08343,92622.0,92621.0,0.00219803]
[1763614220621,0.08343,92622.0,92621.0,0.36299803]
[1763614220824,0.04865,92622.0,92621.0,0.36299803]
[1763614221024,0.01771,92622.0,92621.0,0.36299803]
[1763614221328,0.08343,92628.0,92622.0,0.1080659]
[1763614221527,0.08343,92628.0,92627.0,0.00219803]
[1763614221823,0.08343,92628.0,92627.0,0.10679803]
[1763614222822,0.39174,92643.0,92639.0,0.1080461]
[1763614223022,0.01771,92652.0,92645.0,0.05256]
[1763614223231,0.06598985,92646.0,92645.0,0.10679803]
[1763614223919,0.06598985,92646.0,92645.0,0.15935803]
[1763614228817,0.06598985,92646.0,92645.0,0.52015803]
[1763614229023,0.00026985,92646.0,92645.0,0.52015803]
[1763614229423,0.03036985,92646.0,92645.0,0.52015803]
[1763614229622,0.05918985,92646.0,92645.0,0.52015803]
[1763614230531,0.05918985,92646.0,92645.0,2.12819713]
[1763614231130,0.05918985,92646.0,92645.0,2.02015803]
[1763614231315,0.16722775,92646.0,92645.0,2.02015803]
[1763614231926,0.16722775,92646.0,92645.0,0.52015803]
[1763614232324,0.16722775,92646.0,92645.0,0.52011803]
[1763614233324,0.05918985,92646.0,92645.0,0.52011803]
[1763614234627,0.05918985,92646.0,92645.0,0.62815713]
[1763614236127,0.00026985,92646.0,92645.0,0.62815713]
[1763614236429,0.02969,92663.0,92662.0,0.04094]
[1763614236639,0.02969,92663.0,92662.0,0.50845803]
[1763614237322,0.05818,92663.0,92662.0,0.50845803]
[1763614237730,0.1661981,92663.0,92662.0,0.50845803]
[1763614237919,0.05818,92663.0,92662.0,0.50845803]
[1763614238120,0.05818,92663.0,92662.0,0.40393803]
[1763614238325,0.05818,92663.0,92662.0,0.50845803]
[1763614239229,0.05818,92663.0,92662.0,0.48798803]
[1763614240130,0.05818,92663.0,92662.0,0.46751803]
[1763614240325,0.05818,92663.0,92662.0,0.36299803]
[1763614240520,0.05818,92663.0,92662.0,0.46751803]
[1763614245632,0.1080167,92665.0,92653.0,0.07341617]
[1763614245633,0.1662086,92654.0,92653.0,0.07341617]
[1763614245836,0.1662168,92647.0,92646.0,0.04094]
[1763614246038,0.1662168,92647.0,92646.0,0.04313803]
[1763614246335,0.1662168,92647.0,92646.0,0.14761803]
[1763614248137,0.1662168,92647.0,92646.0,0.17643672]
[1763614248634,0.1662168,92647.0,92640.0,0.48290158]
[1763614248833,0.05818,92611.0,92610.0,0.06006053]
[1763614249028,0.05818,92601.0,92600.0,0.30797234]
[1763614249230,0.7216,92605.0,92604.0,0.05634]
[1763614249436,0.00219803,92615.0,92614.0,0.05634]
[1763614249629,0.00219803,92615.0,92614.0,0.26994797]
[1763614249837,0.00219803,92615.0,92614.0,0.27306756]
[1763614250025,0.00219803,92615.0,92614.0,0.37786756]
[1763614250631,0.00219803,92615.0,92614.0,0.37986756]
[1763614251533,0.3608,92620.0,92614.0,0.37986756]
[1763614251534,0.3608,92620.0,92619.0,0.1644094]
[1763614251739,0.00016164,92624.0,92623.0,0.1644047]
[1763614251934,0.00016164,92624.0,92623.0,0.73865696]
[1763614252835,0.01775,92640.0,92633.0,0.05634]
[1763614253135,0.108039,92646.0,92633.0,0.16187267]
[1763614253440,0.108039,92646.0,92633.0,0.26979226]
[1763614254241,0.166219,92646.0,92645.0,0.05634]
[1763614254540,0.16841703,92646.0,92645.0,0.16187267]
[1763614254737,0.16841703,92646.0,92645.0,0.26979226]
[1763614255445,0.16841703,92646.0,92645.0,0.13319267]
[1763614255637,0.16841703,92646.0,92645.0,0.16187267]
[1763614255843,0.06037803,92646.0,92645.0,0.16187267]
[1763614256041,0.06037803,92646.0,92645.0,0.27079226]
[1763614256637,0.16841593,92646.0,92645.0,0.13731226]
[1763614256834,0.16841593,92646.0,92645.0,0.21441226]
[1763614257143,0.16841593,92646.0,92645.0,0.24207226]
[1763614257340,0.16841593,92646.0,92645.0,0.27075226]
[1763614258951,0.16841593,92646.0,92645.0,0.10891959]
[1763614259239,0.05818,92631.0,92630.0,0.16633848]
[1763614259443,0.06037803,92631.0,92630.0,0.16183267]
[1763614259632,0.00219803,92631.0,92630.0,0.33321886]
[1763614260443,0.00219803,92631.0,92630.0,0.33421886]
[1763614260748,0.3608,92639.0,92638.0,0.1643872]
[1763614260948,0.36299803,92639.0,92638.0,0.22844946]
[1763614261952,0.36299803,92639.0,92638.0,0.22944946]
[1763614262155,0.36299803,92639.0,92638.0,0.23044946]
[1763614263252,0.00219803,92639.0,92638.0,0.23044946]
[1763614265759,0.3608,92650.0,92649.0,0.07186]
[1763614265760,0.43466,92650.0,92649.0,0.07186]
[1763614265967,0.43685803,92650.0,92649.0,0.17731267]
[1763614266166,0.43685803,92650.0,92649.0,0.24064226]
[1763614267460,0.43685803,92650.0,92649.0,0.17731267]
[1763614268063,0.43685803,92650.0,92649.0,0.24064226]
[1763614269365,0.36299803,92650.0,92649.0,0.17731267]
[1763614269564,0.43685803,92650.0,92649.0,0.24064226]
[1763614269862,0.40898803,92650.0,92649.0,0.24064226]
[1763614270450,0.43685803,92650.0,92649.0,0.24064226]
[1763614270857,0.43685803,92650.0,92649.0,0.17731267]
[1763614271055,0.43685803,92650.0,92649.0,0.24064226]
[1763614271251,0.43685803,92650.0,92649.0,0.17731267]
[1763614271465,0.43685803,92650.0,92649.0,0.24064226]
[1763614272365,0.43685803,92650.0,92649.0,0.17731267]
[1763614272665,0.43685803,92650.0,92649.0,0.24064226]
[1763614272865,0.43685803,92650.0,92649.0,0.17731267]
[1763614273056,0.43685803,92650.0,92649.0,0.24064226]
[1763614274274,0.43685803,92650.0,92616.0,0.09680765]
[1763614274275,0.1080717,92617.0,92616.0,0.09680765]
[1763614274465,0.82843803,92617.0,92604.0,0.07186]
[1763614274664,0.82843803,92617.0,92607.0,0.12685924]
[1763614274665,0.1080825,92608.0,92607.0,0.12685924]
[1763614274862,0.83188053,92608.0,92607.0,0.07186]
[1763614275168,0.83188033,92608.0,92607.0,0.07186]
[1763614275665,0.1080869,92604.0,92603.0,0.02661]
[1763614275876,0.1080928,92599.0,92598.0,0.00016194]
[1763614276171,0.47109083,92599.0,92598.0,0.04362194]
[1763614276768,0.47109083,92599.0,92598.0,0.00016194]
[1763614277571,0.1081033,92590.0,92589.0,0.02661]
[1763614277769,0.47110133,92590.0,92589.0,0.02661]
[1763614278272,0.45610133,92590.0,92589.0,0.02661]
[1763614278977,0.45610133,92590.0,92588.0,0.00013877]
[1763614281471,0.45610133,92590.0,92588.0,0.00113877]
[1763614282270,0.1081138,92581.0,92580.0,1.94e-06]
[1763614282472,0.1081301,92567.0,92565.0,0.02661]
[1763614282671,0.47112813,92567.0,92565.0,0.02661]
[1763614283071,0.47112813,92567.0,92566.0,0.04373008]
[1763614283272,0.47125701,92567.0,92566.0,0.04373008]
[1763614284072,0.47125701,92567.0,92566.0,0.04473008]
[1763614284370,0.47125701,92567.0,92566.0,0.00127008]
[1763614284575,0.47125701,92567.0,92566.0,0.00327008]
[1763614286784,0.52937701,92567.0,92566.0,0.00327008]
[1763614287278,0.42124691,92567.0,92566.0,0.11476008]
[1763614289285,0.42124691,92567.0,92566.0,0.22289138]
[1763614289780,0.42124691,92567.0,92566.0,0.11476008]
[1763614298882,0.42124691,92567.0,92566.0,0.00327008]
[1763614304194,0.44709229,92567.0,92566.0,0.00327008]
[1763614304897,0.44709229,92567.0,92566.0,0.05505008]
[1763614305399,0.44709229,92567.0,92566.0,0.10853008]
[1763614305697,0.55181229,92567.0,92566.0,0.10853008]
[1763614305896,0.44709229,92567.0,92566.0,0.10853008]
[1763614310297,0.05855097,92576.0,92575.0,0.10526]
[1763614310494,0.00016203,92576.0,92575.0,0.2133808]
[1763614310699,0.3608,92591.0,92575.0,0.2133808]
[1763614310700,0.3608,92591.0,92590.0,0.2133633]
[1763614311084,0.41722803,92591.0,92590.0,0.10526]
[1763614311395,0.47328803,92591.0,92590.0,0.2133633]
[1763614312096,0.41722803,92591.0,92590.0,0.2133633]
[1763614312491,0.36299803,92591.0,92590.0,0.2133633]
[1763614313899,0.36299803,92591.0,92590.0,0.2153633]
[1763614314600,0.36299803,92591.0,92590.0,0.2258999]
[1763614316202,0.3608,92591.0,92590.0,0.2258999]
[1763614316499,0.36096203,92600.0,92590.0,0.2258999]
[1763614316500,0.00016203,92600.0,92599.0,0.2133528]
[1763614316700,0.08231,92631.0,92630.0,0.1598366]
[1763614317002,0.03179,92659.0,92651.0,0.10526]
[1763614317003,0.11029,92652.0,92651.0,0.10526]
[1763614317198,0.11248803,92652.0,92651.0,0.10526]
[1763614320500,0.11029,92649.0,92648.0,0.2132949]
[1763614320700,0.11248803,92649.0,92648.0,0.2132949]
[1763614320913,0.11248803,92649.0,92648.0,0.05178]
[1763614321901,0.11029,92643.0,92642.0,0.00016193]
[1763614322103,0.11248803,92643.0,92642.0,0.00016193]
[1763614322400,0.11248803,92643.0,92642.0,0.11271193]
[1763614322401,0.00219803,92643.0,92642.0,0.11271193]
[1763614324406,0.36106985,92646.0,92645.0,0.11255]
[1763614325400,0.47332788,92646.0,92645.0,0.11255]
[1763614328612,0.47332788,92646.0,92645.0,0.2205891]
[1763614329718,0.11252788,92646.0,92645.0,0.2205891]
[1763614333713,0.00026985,92646.0,92645.0,0.2573291]
[1763614334810,0.00026985,92646.0,92645.0,0.2677638]
[1763614335316,0.00016175,92661.0,92660.0,0.11255]
[1763614335516,0.11022175,92661.0,92660.0,0.11255]
[1763614335819,0.11241978,92661.0,92660.0,0.11255]
[1763614336516,0.11022175,92661.0,92660.0,0.11255]
[1763614336708,0.11241978,92661.0,92660.0,0.11255]
[1763614339624,0.00235978,92661.0,92660.0,0.47335]
[1763614339925,0.06183978,92661.0,92660.0,0.47335]
[1763614340523,0.11241978,92661.0,92660.0,0.47435]
[1763614341022,0.11241978,92661.0,92660.0,0.52373]
[1763614341222,0.11241978,92661.0,92660.0,0.16293]
[1763614341836,0.11241978,92661.0,92660.0,0.21811]
[1763614344533,0.11241978,92661.0,92660.0,0.11355]
[1763614344728,0.11241978,92661.0,92660.0,0.001]
[1763614345739,0.2181014,92643.0,92640.0,0.14417504]
[1763614346036,0.22029943,92643.0,92642.0,0.21727193]
[1763614346329,0.24391685,92643.0,92642.0,0.16209193]
[1763614346924,0.24391685,92643.0,92642.0,0.16409193]
[1763614349230,0.24391685,92643.0,92642.0,0.00216193]
[1763614352637,0.28246717,92643.0,92642.0,0.00216193]
[1763614353331,0.24391685,92643.0,92642.0,0.00216193]
[1763614353934,0.2255754,92631.0,92630.0,0.14417504]
[1763614354129,0.1032,92625.0,92624.0,0.6110126]
[1763614354334,0.10539803,92625.0,92624.0,0.7155326]
[1763614354627,0.10539803,92625.0,92624.0,0.6787926]
[1763614355432,0.10539803,92625.0,92624.0,0.57073]
[1763614355936,0.10639803,92625.0,92624.0,0.57073]
[1763614356526,0.10539803,92625.0,92624.0,0.57073]
[1763614356729,0.10539803,92625.0,92624.0,0.57273]
[1763614356934,0.12885989,92625.0,92624.0,0.46821]
[1763614357129,0.12885989,92625.0,92624.0,0.46721]
[1763614357331,0.12885989,92625.0,92624.0,0.46821]
[1763614358038,0.10539803,92625.0,92624.0,0.46821]
[1763614358637,0.10539803,92625.0,92624.0,0.10741]
[1763614361039,0.21346043,92625.0,92624.0,0.002]
[1763614361938,0.10539803,92625.0,92624.0,0.10741]
[1763614362127,0.10539803,92625.0,92624.0,0.002]
[1763614367330,0.10539803,92625.0,92615.0,0.10557193]
[1763614367331,0.11986,92616.0,92615.0,0.10557193]
[1763614367536,0.12205803,92616.0,92615.0,0.10557193]
[1763614367940,0.23013093,92616.0,92615.0,0.10557193]
[1763614368531,0.21347093,92616.0,92615.0,0.10657193]
[1763614368731,0.00219803,92616.0,92615.0,0.10657193]
[1763614368938,0.1032,92632.0,92631.0,0.2134654]
[1763614369238,0.10539803,92632.0,92631.0,0.10541]
[1763614369438,0.10539803,92632.0,92631.0,0.2134654]
[1763614370042,0.10539803,92632.0,92631.0,0.10541]
[1763614371347,0.10539803,92632.0,92631.0,0.10641]
[1763614371949,0.10539803,92632.0,92631.0,0.10541]
[1763614372145,0.03103193,92634.0,92630.0,0.2126163]
[1763614372146,0.00016193,92634.0,92633.0,0.10541]
[1763614372345,1.93e-06,92634.0,92633.0,0.10541]
[1763614372549,0.464,92649.0,92648.0,0.2134456]
[1763614372740,0.46619803,92649.0,92648.0,0.2134456]
[1763614373239,0.46619803,92649.0,92648.0,0.10541]
[1763614376640,0.57423253,92649.0,92648.0,0.10541]
[1763614377041,0.54829289,92649.0,92648.0,0.10541]
[1763614379944,0.44025839,92649.0,92639.0,0.1651457]
[1763614380152,0.1032,92641.0,92640.0,0.2134549]
[1763614380352,0.1032,92641.0,92639.0,0.11015111]
[1763614380353,0.2266749,92640.0,92639.0,0.00016193]
[1763614380553,0.22887293,92640.0,92639.0,0.00016193]
[1763614382654,0.22887293,92640.0,92639.0,0.00116193]
[1763614382852,0.2084343,92632.0,92631.0,0.108055]
[1763614383057,0.21063233,92632.0,92631.0,0.108055]
[1763614383247,0.21063233,92632.0,92627.0,0.24535783]
[1763614383248,0.2084389,92628.0,92627.0,0.24535783]
[1763614383450,0.10257803,92628.0,92627.0,0.24535783]
[1763614383649,0.10257803,92628.0,92627.0,0.206709]
[1763614384161,0.00016193,92637.0,92636.0,0.2066996]
[1763614384451,0.00016193,92637.0,92636.0,0.3112596]
[1763614385158,0.46118,92649.0,92648.0,0.2066856]
[1763614385348,0.46337803,92649.0,92648.0,0.2066856]
[1763614387866,0.00016175,92658.0,92657.0,0.05514]
[1763614388159,0.05051175,92658.0,92657.0,0.41594]
[1763614389159,0.10054175,92658.0,92657.0,0.41594]
[1763614389663,0.10054175,92658.0,92657.0,0.52162]
[1763614390251,0.10273978,92658.0,92657.0,0.41694]
[1763614390654,0.10273978,92658.0,92657.0,0.52158]
[1763614391359,0.13015,92676.0,92675.0,0.05514]
[1763614391664,0.10038,92669.0,92668.0,0.2677923]
[1763614391849,0.10257803,92669.0,92668.0,0.2677923]
[1763614392857,0.10257803,92669.0,92668.0,0.6285923]
[1763614393959,0.10257803,92669.0,92668.0,0.52058]
[1763614395867,0.00219803,92669.0,92668.0,0.52058]
[1763614396066,0.13015,92676.0,92675.0,0.1631441]
[1763614396263,0.00026973,92686.0,92685.0,0.05514]
[1763614396461,0.3618024,92686.0,92685.0,0.00219803]
[1763614396665,0.4621824,92686.0,92685.0,0.00219803]
[1763614396957,0.5701737,92686.0,92685.0,0.00219803]
[1763614397352,0.4621824,92686.0,92685.0,0.02976803]
[1763614397555,0.4621824,92686.0,92685.0,0.05733803]
[1763614397758,0.1013824,92686.0,92685.0,0.05733803]
[1763614399566,0.1013824,92686.0,92685.0,0.00219803]
[1763614399759,0.10038,92671.0,92670.0,0.15824768]
[1763614399960,0.00026973,92686.0,92685.0,0.05366]
[1763614400159,0.10064973,92686.0,92685.0,0.05585803]
[1763614401267,0.10064973,92686.0,92685.0,0.02902803]
[1763614401767,0.10064973,92686.0,92685.0,0.10683803]
[1763614402070,0.10064973,92686.0,92685.0,0.10783803]
[1763614402461,0.10064973,92686.0,92685.0,0.00319803]
[1763614402668,0.10064973,92686.0,92685.0,0.001]
[1763614403870,0.2083725,92685.0,92684.0,0.107993]
[1763614404171,0.10064973,92686.0,92685.0,0.1079925]
[1763614404375,0.10064973,92686.0,92685.0,0.11019053]
[1763614404874,0.10064973,92686.0,92685.0,0.13702053]
[1763614405472,0.20864103,92686.0,92685.0,0.00219803]
[1763614406475,0.20864103,92686.0,92676.0,0.161663]
[1763614406476,0.10038,92677.0,92676.0,0.161663]
[1763614406676,0.10038,92677.0,92676.0,0.26850103]
[1763614407676,0.10038,92677.0,92676.0,0.26950103]
[1763614407876,0.00026973,92686.0,92685.0,0.1476725]
[1763614408070,0.00026973,92686.0,92685.0,0.51067053]
[1763614408071,0.09343973,92686.0,92685.0,0.51067053]
[1763614408767,0.09343973,92686.0,92685.0,0.61527053]
[1763614410181,0.09343973,92686.0,92685.0,0.00219803]
[1763614410473,0.09317,92670.0,92669.0,0.1476911]
[1763614410671,0.09317,92670.0,92669.0,0.25448913]
[1763614411581,0.09317,92670.0,92669.0,0.25548913]
[1763614412182,0.08910973,92686.0,92685.0,0.0349]
[1763614412372,0.08910973,92686.0,92685.0,0.03709803]
[1763614413275,0.44990973,92686.0,92685.0,0.00219803]
[1763614413474,0.11538,92682.0,92681.0,0.1046]
[1763614413680,0.11538,92682.0,92681.0,0.14169803]
[1763614413975,0.11538,92682.0,92681.0,0.10679803]
[1763614414173,0.11538,92682.0,92681.0,0.00219803]
[1763614414779,0.11538,92682.0,92681.0,0.00319803]
[1763614416871,0.08884,92665.0,92664.0,0.1046]
[1763614417075,0.1968558,92665.0,92664.0,0.10679803]
[1763614417670,0.08884,92665.0,92664.0,0.14369803]
[1763614417866,0.11538,92672.0,92671.0,0.0369]
[1763614418081,0.11538,92672.0,92671.0,0.03909803]
[1763614418283,0.00026973,92686.0,92685.0,0.0369]
[1763614418580,0.08910973,92686.0,92685.0,0.14373803]
[1763614422183,0.08910973,92686.0,92685.0,0.03909803]
[1763614422370,0.00026973,92686.0,92685.0,0.14369803]
[1763614422778,0.08910973,92686.0,92685.0,0.14369803]
[1763614423378,0.04368973,92686.0,92685.0,0.14369803]
[1763614423577,0.08910973,92686.0,92685.0,0.14369803]
[1763614424277,0.00026973,92686.0,92685.0,0.20164633]
[1763614424774,0.00026973,92686.0,92685.0,0.30963883]
[1763614425184,0.00026973,92686.0,92685.0,0.25169053]
[1763614425387,0.11538,92704.0,92703.0,0.1448715]
[1763614425582,0.11538,92709.0,92708.0,0.1448657]
[1763614425884,0.11538,92709.0,92708.0,0.03909803]
[1763614426687,0.11538,92720.0,92719.0,0.0369]
[1763614426879,0.2233317,92720.0,92719.0,0.00219803]
[1763614427185,0.11538,92720.0,92719.0,0.00219803]
[1763614427989,0.151388,92706.0,92705.0,0.03857902]
[1763614428184,0.08884,92696.0,92695.0,0.03857902]
[1763614428382,0.09103803,92696.0,92695.0,0.03857902]
[1763614428779,0.09103803,92696.0,92695.0,0.05922902]
[1763614429177,0.09103803,92696.0,92695.0,0.02065]
[1763614429689,0.1968208,92695.0,92694.0,0.00016184]
[1763614429885,0.19901883,92695.0,92694.0,0.00016184]
[1763614431078,0.00219803,92695.0,92694.0,0.00016184]
[1763614431282,0.00219803,92695.0,92694.0,0.51024384]
[1763614431696,0.09103803,92695.0,92694.0,0.51024384]
[1763614431894,0.09103803,92695.0,92694.0,0.51124384]
[1763614432399,0.09103803,92695.0,92694.0,0.50790184]
[1763614432693,0.45183803,92695.0,92694.0,0.00116184]
[1763614433792,0.45183803,92695.0,92694.0,0.04246184]
[1763614434292,0.45183803,92695.0,92694.0,0.02181184]
[1763614434891,0.45183803,92695.0,92694.0,0.00116184]
[1763614436296,0.55981883,92695.0,92694.0,0.00116184]
[1763614437488,0.45183803,92695.0,92694.0,0.02181184]
[1763614437994,0.45183803,92695.0,92694.0,0.00116184]
[1763614439596,0.45183803,92695.0,92677.0,0.03857902]
[1763614439597,0.08884,92679.0,92677.0,0.03857902]
[1763614439801,0.08884,92676.0,92675.0,0.10464]
[1763614440101,0.08884,92674.0,92673.0,0.4688065]
[1763614440287,0.09103803,92674.0,92673.0,0.3608]
[1763614441203,0.08884,92668.0,92667.0,0.03857902]
[1763614441391,0.08884,92668.0,92664.0,0.00027026]
[1763614441392,0.1968558,92665.0,92664.0,0.00027026]
[1763614441700,0.19905383,92665.0,92664.0,0.00027026]
[1763614441895,0.1968674,92655.0,92654.0,0.3608]
[1763614442095,0.00219803,92655.0,92654.0,0.38927]
[1763614442400,0.08948803,92655.0,92654.0,0.3608]
[1763614442794,0.08958823,92655.0,92654.0,0.3608]
[1763614443903,0.08958823,92655.0,92654.0,0.3618]
[1763614444396,0.11576823,92655.0,92654.0,0.3608]
[1763614444600,0.11576823,92655.0,92654.0,0.3618]
[1763614445000,0.11476823,92655.0,92654.0,0.3618]
[1763614445189,0.11476823,92655.0,92654.0,0.3628]
[1763614445795,0.0001002,92655.0,92654.0,0.4859286]
[1763614446001,0.11476823,92655.0,92654.0,0.4859286]
[1763614446301,0.11476823,92655.0,92654.0,0.5906486]
[1763614447304,0.0001002,92655.0,92654.0,0.5906486]
[1763614448199,0.0001002,92655.0,92654.0,0.62918352]
[1763614449503,0.02534184,92664.0,92663.0,0.1185181]
[1763614449806,0.00016184,92664.0,92663.0,0.62477105]
[1763614450594,0.11336451,92664.0,92663.0,0.36299803]
[1763614450809,0.11336451,92664.0,92663.0,0.36399803]
[1763614453207,0.00016184,92664.0,92663.0,0.37449803]
[1763614453513,0.06668,92673.0,92672.0,0.1185076]
[1763614453807,0.11456267,92673.0,92672.0,0.12070563]
[1763614455808,0.11456267,92673.0,92672.0,0.01269803]
[1763614456004,0.11456267,92673.0,92672.0,0.00219803]
[1763614456202,0.11456267,92673.0,92672.0,0.00319803]
[1763614456403,0.00016152,92682.0,92681.0,0.0105]
[1763614456609,0.11247,92700.0,92699.0,0.0105]
[1763614456809,0.11320267,92700.0,92699.0,0.01269803]
[1763614458511,0.2204566,92690.0,92689.0,0.3608]
[1763614458812,0.22118927,92690.0,92689.0,0.36299803]
[1763614459512,0.02591267,92690.0,92689.0,0.3713]
[1763614459814,0.11320267,92690.0,92689.0,0.01369803]
[1763614460200,0.11320267,92690.0,92689.0,0.00319803]
[1763614460615,0.11320267,92690.0,92689.0,0.001]
[1763614460912,0.08729,92681.0,92680.0,0.50470562]
[1763614461102,0.08802267,92681.0,92680.0,0.46783803]
[1763614461309,0.04087267,92681.0,92680.0,0.47833803]
[1763614461514,0.08802267,92681.0,92680.0,0.47833803]
[1763614462306,0.08802267,92681.0,92680.0,0.47933803]
[1763614462509,0.08802267,92681.0,92680.0,0.37449803]
[1763614462813,0.08802267,92681.0,92680.0,0.48033803]
[1763614464617,0.04087267,92681.0,92680.0,0.48033803]
[1763614465204,0.08802267,92681.0,92680.0,0.48033803]
[1763614467110,0.00073267,92681.0,92680.0,0.48033803]
[1763614467717,0.09925,92690.0,92680.0,0.46983803]
[1763614467918,0.02141,92682.0,92681.0,0.1079972]
[1763614468127,0.09621267,92682.0,92681.0,0.11019523]
[1763614468610,0.09621267,92682.0,92681.0,0.21499523]
[1763614469117,0.09621267,92682.0,92681.0,0.10799803]
[1763614469618,0.09621267,92682.0,92681.0,0.10899803]
[1763614471617,0.1079764,92699.0,92681.0,0.11209442]
[1763614471913,0.09548,92682.0,92681.0,0.11219513]
[1763614472110,0.09548,92682.0,92681.0,0.21703513]
[1763614472723,0.09548,92682.0,92681.0,0.11119513]